[Event "Late-Titled-Tuesday-Blitz-July-09-2024"]
[Site "Chess.com"]
[Date "2024.07.09"]
[Round "5"]
[White "karinachess1"]
[Black "mbojan"]
[Result "0-1"]
[WhiteElo "2667"]
[BlackElo "2917"]
[TimeControl "180+1"]
[EndTime "14:57:33 PDT"]
[Termination "mbojan won by resignation"]

1. d4 {[%clk 0:03:00.9]} 1... a6 {[%clk 0:02:58.9]} 2. c4 {[%clk 0:02:59.5]}
2... g6 {[%clk 0:02:48.6]} 3. Nc3 {[%clk 0:02:56.4]} 3... Bg7 {[%clk 0:02:49]}
4. Nf3 {[%clk 0:02:54.5]} 4... d6 {[%clk 0:02:49.4]} 5. e4 {[%clk 0:02:50.1]}
5... Bg4 {[%clk 0:02:45.7]} 6. Be2 {[%clk 0:02:50.3]} 6... Bxf3 {[%clk
0:02:35.9]} 7. Bxf3 {[%clk 0:02:49.9]} 7... Nc6 {[%clk 0:02:36.4]} 8. d5 {[%clk
0:02:50]} 8... Nd4 {[%clk 0:02:33.9]} 9. O-O {[%clk 0:02:49.8]} 9... c5 {[%clk
0:02:30.9]} 10. dxc6 {[%clk 0:02:38]} 10... bxc6 {[%clk 0:02:18.6]} 11. Be3
{[%clk 0:02:37.5]} 11... e5 {[%clk 0:02:18.4]} 12. Bxd4 {[%clk 0:02:12.8]} 12...
exd4 {[%clk 0:02:18.4]} 13. Ne2 {[%clk 0:02:00.8]} 13... Qb6 {[%clk 0:02:07.7]}
14. Qd2 {[%clk 0:02:01]} 14... Ne7 {[%clk 0:02:00.9]} 15. Rfd1 {[%clk 0:02:01]}
15... c5 {[%clk 0:01:49.4]} 16. e5 {[%clk 0:01:49.3]} 16... Rb8 {[%clk
0:01:47.7]} 17. exd6 {[%clk 0:01:48]} 17... Qxd6 {[%clk 0:01:48.6]} 18. Rab1
{[%clk 0:01:47.3]} 18... O-O {[%clk 0:01:46]} 19. Nc1 {[%clk 0:01:44.5]} 19...
Nf5 {[%clk 0:00:40.4]} 20. Nd3 {[%clk 0:01:42.8]} 20... Qb6 {[%clk 0:00:40.8]}
21. b3 {[%clk 0:01:35.7]} 21... Nd6 {[%clk 0:00:41.1]} 22. Bd5 {[%clk
0:01:34.6]} 22... Rfe8 {[%clk 0:00:36.8]} 23. h3 {[%clk 0:01:29.2]} 23... Bf6
{[%clk 0:00:34.1]} 24. Qf4 {[%clk 0:01:27.7]} 24... Kg7 {[%clk 0:00:34.3]} 25.
Re1 {[%clk 0:01:24.1]} 25... Rxe1+ {[%clk 0:00:33.1]} 26. Rxe1 {[%clk 0:01:25]}
26... Re8 {[%clk 0:00:33.6]} 27. Rxe8 {[%clk 0:01:21.2]} 27... Nxe8 {[%clk
0:00:34.5]} 28. Ne5 {[%clk 0:01:21.6]} 28... Nc7 {[%clk 0:00:20.2]} 29. Nd7
{[%clk 0:01:13.8]} 29... Nxd5 {[%clk 0:00:20.6]} 30. cxd5 {[%clk 0:01:13.6]}
30... Qd8 {[%clk 0:00:20.7]} 31. Nxc5 {[%clk 0:01:03.3]} 31... Qxd5 {[%clk
0:00:20.3]} 32. Nd3 {[%clk 0:01:03.8]} 32... h5 {[%clk 0:00:18.5]} 33. Qc7
{[%clk 0:00:54.2]} 33... Qe4 {[%clk 0:00:16.6]} 34. Qc2 {[%clk 0:00:52.4]} 34...
h4 {[%clk 0:00:15.3]} 35. Kf1 {[%clk 0:00:52.5]} 35... Qd5 {[%clk 0:00:13.5]}
36. Qe2 {[%clk 0:00:52.4]} 36... Qa5 {[%clk 0:00:13.1]} 37. Qc2 {[%clk
0:00:51.9]} 37... Qd5 {[%clk 0:00:12.5]} 38. Qc4 {[%clk 0:00:49.5]} 38... Qd6
{[%clk 0:00:12.5]} 39. Ke2 {[%clk 0:00:46.8]} 39... Qa3 {[%clk 0:00:10]} 40. Qc2
{[%clk 0:00:42.6]} 40... a5 {[%clk 0:00:10.5]} 41. Kf3 {[%clk 0:00:36.4]} 41...
Qe7 {[%clk 0:00:07.6]} 42. Qe2 {[%clk 0:00:34.9]} 42... Qb7+ {[%clk 0:00:07.9]}
43. Qe4 {[%clk 0:00:35.1]} 43... Qb5 {[%clk 0:00:08.7]} 44. Ke2 {[%clk
0:00:26.4]} 44... Qh5+ {[%clk 0:00:08.6]} 45. Qf3 {[%clk 0:00:24.7]} 45... Qb5
{[%clk 0:00:09.5]} 46. Kd2 {[%clk 0:00:19.7]} 46... a4 {[%clk 0:00:10.1]} 47.
Kc2 {[%clk 0:00:19.4]} 47... axb3+ {[%clk 0:00:10.4]} 48. axb3 {[%clk
0:00:20.3]} 48... Qa6 {[%clk 0:00:10.5]} 49. Kb2 {[%clk 0:00:20.1]} 49... Qc8
{[%clk 0:00:10.8]} 50. Qe4 {[%clk 0:00:19.6]} 50... Qc3+ {[%clk 0:00:11.1]} 51.
Ka2 {[%clk 0:00:20]} 51... Qc2+ {[%clk 0:00:11.3]} 52. Ka3 {[%clk 0:00:15]}
52... Kf8 {[%clk 0:00:09.3]} 53. Ka4 {[%clk 0:00:10.8]} 53... Qa2+ {[%clk
0:00:07.5]} 54. Kb4 {[%clk 0:00:10.9]} 54... Be7+ {[%clk 0:00:06.6]} 55. Kc4
{[%clk 0:00:10.8]} 55... Qa6+ {[%clk 0:00:07.2]} 56. Kxd4 {[%clk 0:00:10.6]}
56... Qb6+ {[%clk 0:00:07.7]} 57. Kc4 {[%clk 0:00:10.2]} 57... Qa6+ {[%clk
0:00:08]} 58. Kd4 {[%clk 0:00:10.5]} 58... Bf6+ {[%clk 0:00:07.2]} 59. Ke3
{[%clk 0:00:10.3]} 59... Qb6+ {[%clk 0:00:07.8]} 60. Kf3 {[%clk 0:00:10.4]}
60... Qxb3 {[%clk 0:00:07.5]} 61. Ke2 {[%clk 0:00:09.7]} 61... Kg7 {[%clk
0:00:07.9]} 62. Kf3 {[%clk 0:00:10.1]} 62... Qc2 {[%clk 0:00:08.2]} 63. Qe2
{[%clk 0:00:09.5]} 63... Qc4 {[%clk 0:00:08.6]} 64. Qe4 {[%clk 0:00:10.1]} 64...
Qc3 {[%clk 0:00:09.2]} 65. Ke2 {[%clk 0:00:10]} 65... Qa3 {[%clk 0:00:09.9]} 66.
Kf3 {[%clk 0:00:10.1]} 66... Qa2 {[%clk 0:00:10.5]} 67. Qe2 {[%clk 0:00:10]}
67... Qb3 {[%clk 0:00:10.9]} 68. Qe4 {[%clk 0:00:10]} 68... Qc3 {[%clk
0:00:11.1]} 69. Ke2 {[%clk 0:00:10.2]} 69... Qc7 {[%clk 0:00:11.5]} 70. Kf3
{[%clk 0:00:09.8]} 70... Qd7 {[%clk 0:00:11.9]} 71. Ke2 {[%clk 0:00:10.1]} 71...
Qd6 {[%clk 0:00:12.3]} 72. Kf3 {[%clk 0:00:10.5]} 72... Qa3 {[%clk 0:00:12.6]}
73. Ke2 {[%clk 0:00:10.7]} 73... Qa1 {[%clk 0:00:13.1]} 74. Kf3 {[%clk 0:00:11]}
74... Qa2 {[%clk 0:00:12.5]} 75. Qe2 {[%clk 0:00:11.3]} 75... Qa5 {[%clk
0:00:11.5]} 76. Qe4 {[%clk 0:00:11.8]} 76... Qb5 {[%clk 0:00:11.2]} 77. Ke2
{[%clk 0:00:12]} 77... Qh5+ {[%clk 0:00:11.3]} 78. Qf3 {[%clk 0:00:11.4]} 78...
Qa5 {[%clk 0:00:08.1]} 79. Qe4 {[%clk 0:00:11.3]} 79... Qb5 {[%clk 0:00:07.9]}
80. Kf3 {[%clk 0:00:11.2]} 80... Qh5+ {[%clk 0:00:08.2]} 81. Ke3 {[%clk
0:00:10.2]} 81... Bg5+ {[%clk 0:00:07.4]} 82. Kd4 {[%clk 0:00:10.1]} 82... Qd1
{[%clk 0:00:07.4]} 83. Kc4 {[%clk 0:00:07.8]} 83... Qc2+ {[%clk 0:00:07.1]} 84.
Kd5 {[%clk 0:00:08.2]} 84... Bf6 {[%clk 0:00:07.4]} 85. Qc4 {[%clk 0:00:06.3]}
85... Qe2 {[%clk 0:00:04.8]} 86. Qe4 {[%clk 0:00:06.3]} 86... Qa2+ {[%clk
0:00:05]} 87. Qc4 {[%clk 0:00:06.4]} 87... Qa8+ {[%clk 0:00:05.6]} 88. Qc6
{[%clk 0:00:05.9]} 88... Qa5+ {[%clk 0:00:06.3]} 89. Qc5 {[%clk 0:00:05.8]}
89... Qd2 {[%clk 0:00:05.5]} 90. Qc4 {[%clk 0:00:06.1]} 90... Qg5+ {[%clk
0:00:05.7]} 91. Kc6 {[%clk 0:00:06]} 91... Qxg2+ {[%clk 0:00:06]} 92. Kd7 {[%clk
0:00:03.5]} 92... Qxh3+ {[%clk 0:00:06.1]} 93. Ke8 {[%clk 0:00:03.3]} 93... Qe6+
{[%clk 0:00:03.1]} 94. Qxe6 {[%clk 0:00:03.4]} 94... fxe6 {[%clk 0:00:04]} 95.
Nf4 {[%clk 0:00:04.3]} 95... e5 {[%clk 0:00:04.5]} 96. Nh3 {[%clk 0:00:02.5]}
96... g5 {[%clk 0:00:05.1]} 97. Kd7 {[%clk 0:00:03.4]} 97... g4 {[%clk
0:00:05.4]} 98. Ng1 {[%clk 0:00:03.8]} 98... h3 {[%clk 0:00:06]} 99. Ne2 {[%clk
0:00:04]} 99... Bh4 {[%clk 0:00:05.1]} 100. Ke6 {[%clk 0:00:03.7]} 100... h2
{[%clk 0:00:05]} 101. Kf5 {[%clk 0:00:04.6]} 101... h1=Q {[%clk 0:00:05.2]} 102.
Ng3 {[%clk 0:00:05.5]} 102... Bxg3 {[%clk 0:00:05.4]} 103. fxg3 {[%clk
0:00:06.3]} 103... Qf3+ {[%clk 0:00:05.8]} 0-1

[Event "Late-Titled-Tuesday-Blitz-July-09-2024"]
[Site "Chess.com"]
[Date "2024.07.09"]
[Round "6"]
[White "Indefatigable11"]
[Black "Horokoskii"]
[Result "1-0"]
[WhiteElo "2420"]
[BlackElo "2126"]
[TimeControl "180+1"]
[EndTime "15:00:27 PDT"]
[Termination "Indefatigable11 won by resignation"]

1. d4 {[%clk 0:03:00.9]} 1... Nf6 {[%clk 0:02:58.5]} 2. c4 {[%clk 0:03:01]} 2...
g6 {[%clk 0:02:58.9]} 3. Nc3 {[%clk 0:03:01]} 3... Bg7 {[%clk 0:02:59.5]} 4. e4
{[%clk 0:03:01.3]} 4... d6 {[%clk 0:03:00.1]} 5. Be2 {[%clk 0:03:01.7]} 5... O-O
{[%clk 0:03:00.7]} 6. Be3 {[%clk 0:03:02.1]} 6... e5 {[%clk 0:03:00.4]} 7. d5
{[%clk 0:03:02]} 7... a5 {[%clk 0:02:57.7]} 8. h4 {[%clk 0:03:01.6]} 8... h6
{[%clk 0:02:40.5]} 9. g4 {[%clk 0:03:00.4]} 9... Na6 {[%clk 0:02:38.6]} 10. g5
{[%clk 0:02:57.4]} 10... hxg5 {[%clk 0:02:33.4]} 11. hxg5 {[%clk 0:02:58.3]}
11... Nd7 {[%clk 0:02:32.6]} 12. Qd2 {[%clk 0:02:53.3]} 12... Ndc5 {[%clk
0:02:31]} 13. O-O-O {[%clk 0:02:52.2]} 13... Rb8 {[%clk 0:02:05.5]} 14. f3
{[%clk 0:02:50.3]} 14... Bd7 {[%clk 0:02:05.1]} 15. Qe1 {[%clk 0:02:49.5]} 15...
Qe7 {[%clk 0:01:59.6]} 16. Qh4 {[%clk 0:02:48.5]} 16... f5 {[%clk 0:01:54.8]}
17. gxf6 {[%clk 0:02:43.2]} 17... Qxf6 {[%clk 0:01:54.6]} 18. Bg5 {[%clk
0:02:34.7]} 18... Bh6 {[%clk 0:01:45.4]} 19. Qxh6 {[%clk 0:02:32.7]} 19... Qg7
{[%clk 0:01:45.2]} 20. Qh4 {[%clk 0:02:30.1]} 1-0

[Event "Late-Titled-Tuesday-Blitz-July-09-2024"]
[Site "Chess.com"]
[Date "2024.07.09"]
[Round "6"]
[White "MikaelyanArman"]
[Black "Millerkallpa"]
[Result "1-0"]
[WhiteElo "2872"]
[BlackElo "2269"]
[TimeControl "180+1"]
[EndTime "15:01:08 PDT"]
[Termination "MikaelyanArman won by resignation"]

1. e4 {[%clk 0:02:58.7]} 1... e5 {[%clk 0:02:56.1]} 2. Nf3 {[%clk 0:02:58.2]}
2... Nc6 {[%clk 0:02:53.8]} 3. g3 {[%clk 0:02:58.8]} 3... Nf6 {[%clk 0:02:52]}
4. d3 {[%clk 0:02:59.1]} 4... Be7 {[%clk 0:02:50.6]} 5. Bg2 {[%clk 0:02:59.3]}
5... O-O {[%clk 0:02:51.2]} 6. O-O {[%clk 0:03:00]} 6... d6 {[%clk 0:02:51.4]}
7. Nc3 {[%clk 0:02:59.1]} 7... Be6 {[%clk 0:02:51.8]} 8. h3 {[%clk 0:02:57.7]}
8... h5 {[%clk 0:02:49.2]} 9. Ng5 {[%clk 0:02:57.3]} 9... Qd7 {[%clk 0:02:47.5]}
10. f4 {[%clk 0:02:55.7]} 10... Qc8 {[%clk 0:02:18.8]} 11. f5 {[%clk 0:02:50.7]}
11... Bd7 {[%clk 0:02:18]} 12. g4 {[%clk 0:02:51.3]} 12... hxg4 {[%clk
0:02:11.6]} 13. hxg4 {[%clk 0:02:52.2]} 13... Nd4 {[%clk 0:02:11.4]} 14. Be3
{[%clk 0:02:48.8]} 14... c5 {[%clk 0:02:09.7]} 15. Nd5 {[%clk 0:02:30.6]} 15...
Nxd5 {[%clk 0:02:08.4]} 16. exd5 {[%clk 0:02:31.5]} 16... Qd8 {[%clk 0:01:37.4]}
17. Ne4 {[%clk 0:02:30.7]} 17... f6 {[%clk 0:01:36]} 18. a4 {[%clk 0:02:26.9]}
18... b5 {[%clk 0:01:26.2]} 19. c3 {[%clk 0:02:26.3]} 19... bxa4 {[%clk
0:01:25.9]} 20. cxd4 {[%clk 0:02:26.7]} 20... cxd4 {[%clk 0:01:26.8]} 21. Bd2
{[%clk 0:02:26.9]} 21... Rb8 {[%clk 0:01:25.9]} 22. Rf2 {[%clk 0:02:22.2]} 22...
Rxb2 {[%clk 0:01:24.4]} 23. Ba5 {[%clk 0:02:22.2]} 23... Qxa5 {[%clk 0:01:18.1]}
24. Rxb2 {[%clk 0:02:21.7]} 1-0

[Event "Late-Titled-Tuesday-Blitz-July-09-2024"]
[Site "Chess.com"]
[Date "2024.07.09"]
[Round "6"]
[White "Veleamater"]
[Black "rhungaski"]
[Result "0-1"]
[WhiteElo "2440"]
[BlackElo "2639"]
[TimeControl "180+1"]
[EndTime "15:01:14 PDT"]
[Termination "rhungaski won by resignation"]

1. g3 {[%clk 0:03:00.9]} 1... Nf6 {[%clk 0:02:58.4]} 2. Bg2 {[%clk 0:03:01.2]}
2... g6 {[%clk 0:02:58.4]} 3. d3 {[%clk 0:03:01.8]} 3... Bg7 {[%clk 0:02:58.2]}
4. e4 {[%clk 0:03:02.3]} 4... O-O {[%clk 0:02:57.8]} 5. Nc3 {[%clk 0:03:02.3]}
5... d6 {[%clk 0:02:57.5]} 6. h3 {[%clk 0:03:02.2]} 6... e5 {[%clk 0:02:56.3]}
7. Nge2 {[%clk 0:02:59.4]} 7... Re8 {[%clk 0:02:50.3]} 8. O-O {[%clk 0:02:59]}
8... Nbd7 {[%clk 0:02:50.6]} 9. f4 {[%clk 0:02:58.8]} 9... c6 {[%clk 0:02:49.7]}
10. f5 {[%clk 0:02:58.8]} 10... d5 {[%clk 0:02:33.2]} 11. fxg6 {[%clk
0:02:43.2]} 11... hxg6 {[%clk 0:02:29.3]} 12. exd5 {[%clk 0:02:37.1]} 12... Nxd5
{[%clk 0:02:06.4]} 13. Nxd5 {[%clk 0:02:36.1]} 13... cxd5 {[%clk 0:02:07.3]} 14.
Bxd5 {[%clk 0:02:35.7]} 14... Nf6 {[%clk 0:02:07.8]} 15. Bg2 {[%clk 0:02:35.5]}
15... e4 {[%clk 0:01:53.6]} 16. dxe4 {[%clk 0:02:31.4]} 16... Qb6+ {[%clk
0:01:53.5]} 17. Kh2 {[%clk 0:02:28.7]} 17... Nxe4 {[%clk 0:01:48.1]} 18. Qd5
{[%clk 0:02:24.6]} 18... Bf5 {[%clk 0:01:42.2]} 19. Qb3 {[%clk 0:02:15.1]} 19...
Nc5 {[%clk 0:01:35.7]} 20. Qxb6 {[%clk 0:02:13.8]} 20... axb6 {[%clk 0:01:36.6]}
21. c3 {[%clk 0:02:00.6]} 21... Rxe2 {[%clk 0:01:34.9]} 0-1

[Event "Late-Titled-Tuesday-Blitz-July-09-2024"]
[Site "Chess.com"]
[Date "2024.07.09"]
[Round "6"]
[White "invisible_s0ul"]
[Black "Oleg_Papayan"]
[Result "0-1"]
[WhiteElo "2402"]
[BlackElo "2605"]
[TimeControl "180+1"]
[EndTime "15:01:39 PDT"]
[Termination "Oleg_Papayan won by resignation"]

1. e4 {[%clk 0:03:00]} 1... d5 {[%clk 0:03:00.3]} 2. exd5 {[%clk 0:02:58.5]}
2... Qxd5 {[%clk 0:03:01.2]} 3. Nc3 {[%clk 0:02:58.4]} 3... Qd8 {[%clk
0:03:02.1]} 4. d4 {[%clk 0:02:58.9]} 4... c6 {[%clk 0:03:02.8]} 5. Be3 {[%clk
0:02:55.9]} 5... Bf5 {[%clk 0:03:02.1]} 6. Qd2 {[%clk 0:02:56.1]} 6... e6 {[%clk
0:03:02]} 7. O-O-O {[%clk 0:02:56.1]} 7... Nf6 {[%clk 0:03:00.6]} 8. f3 {[%clk
0:02:56.5]} 8... Bb4 {[%clk 0:03:00.8]} 9. g4 {[%clk 0:02:53.8]} 9... Bg6 {[%clk
0:02:59.5]} 10. Nge2 {[%clk 0:02:38]} 10... Nd5 {[%clk 0:02:46.7]} 11. a3 {[%clk
0:02:35.7]} 11... Ba5 {[%clk 0:02:39.1]} 12. Bf2 {[%clk 0:02:33.5]} 12... b5
{[%clk 0:02:31.9]} 13. Bg2 {[%clk 0:02:09.3]} 13... b4 {[%clk 0:02:12.5]} 14.
axb4 {[%clk 0:02:09.1]} 14... Bxb4 {[%clk 0:01:54.4]} 15. f4 {[%clk 0:02:08.9]}
15... Qa5 {[%clk 0:01:46.2]} 16. Kb1 {[%clk 0:02:08.3]} 16... Nd7 {[%clk
0:01:27]} 17. Bxd5 {[%clk 0:01:46.3]} 17... cxd5 {[%clk 0:01:23.9]} 18. f5
{[%clk 0:01:46.5]} 18... exf5 {[%clk 0:01:23.2]} 19. gxf5 {[%clk 0:01:47.4]}
19... Bxf5 {[%clk 0:01:19.9]} 20. Qd3 {[%clk 0:01:47.5]} 20... Bxd3 {[%clk
0:01:19.7]} 0-1

[Event "Late-Titled-Tuesday-Blitz-July-09-2024"]
[Site "Chess.com"]
[Date "2024.07.09"]
[Round "6"]
[White "FuenfgegenWilly"]
[Black "WildTricks"]
[Result "0-1"]
[WhiteElo "2543"]
[BlackElo "2704"]
[TimeControl "180+1"]
[EndTime "15:01:55 PDT"]
[Termination "WildTricks won by checkmate"]

1. e4 {[%clk 0:03:00.9]} 1... c5 {[%clk 0:02:58.6]} 2. Nc3 {[%clk 0:03:01]} 2...
Nc6 {[%clk 0:02:57.1]} 3. f4 {[%clk 0:03:01.3]} 3... g6 {[%clk 0:02:56.8]} 4.
Nf3 {[%clk 0:03:01.1]} 4... Bg7 {[%clk 0:02:56.7]} 5. Bb5 {[%clk 0:03:01.3]}
5... Nd4 {[%clk 0:02:56.8]} 6. O-O {[%clk 0:03:01.5]} 6... e6 {[%clk 0:02:54.8]}
7. Nxd4 {[%clk 0:02:55.9]} 7... cxd4 {[%clk 0:02:53.5]} 8. Ne2 {[%clk 0:02:56]}
8... Ne7 {[%clk 0:02:39.2]} 9. Kh1 {[%clk 0:02:51]} 9... O-O {[%clk 0:02:38.1]}
10. c3 {[%clk 0:02:50.7]} 10... a6 {[%clk 0:02:27.9]} 11. Bd3 {[%clk 0:02:49.8]}
11... Nc6 {[%clk 0:02:25]} 12. e5 {[%clk 0:02:47.7]} 12... d6 {[%clk 0:02:20.7]}
13. Nxd4 {[%clk 0:02:27]} 13... Nxd4 {[%clk 0:02:10.5]} 14. cxd4 {[%clk
0:02:26.6]} 14... dxe5 {[%clk 0:02:11.1]} 15. fxe5 {[%clk 0:02:17.2]} 15... Qxd4
{[%clk 0:02:10.4]} 16. Qe2 {[%clk 0:02:09.3]} 16... Bxe5 {[%clk 0:01:55.1]} 17.
Be4 {[%clk 0:02:01]} 17... Bd7 {[%clk 0:01:45.3]} 18. Bxb7 {[%clk 0:01:53]}
18... Bb5 {[%clk 0:01:44.8]} 19. Qf3 {[%clk 0:01:52.1]} 19... Rab8 {[%clk
0:01:36.7]} 20. Re1 {[%clk 0:01:45.5]} 20... Bxh2 {[%clk 0:01:30.1]} 21. Re4
{[%clk 0:01:18.4]} 21... Qg1# {[%clk 0:01:29.2]} 0-1

[Event "Late-Titled-Tuesday-Blitz-July-09-2024"]
[Site "Chess.com"]
[Date "2024.07.09"]
[Round "6"]
[White "klercaku"]
[Black "miraitrunks"]
[Result "1-0"]
[WhiteElo "2383"]
[BlackElo "2027"]
[TimeControl "180+1"]
[EndTime "15:02:14 PDT"]
[Termination "klercaku won by resignation"]

1. e4 {[%clk 0:03:00.9]} 1... c5 {[%clk 0:02:58.7]} 2. Nf3 {[%clk 0:03:01.1]}
2... Nc6 {[%clk 0:02:59.1]} 3. d4 {[%clk 0:03:01.6]} 3... cxd4 {[%clk 0:03:00]}
4. Nxd4 {[%clk 0:03:02.3]} 4... g6 {[%clk 0:03:00.4]} 5. Nc3 {[%clk 0:03:02.5]}
5... Bg7 {[%clk 0:03:00.9]} 6. Be3 {[%clk 0:03:03]} 6... Nf6 {[%clk 0:03:00.6]}
7. Be2 {[%clk 0:03:02.7]} 7... O-O {[%clk 0:03:00.3]} 8. O-O {[%clk 0:03:03.2]}
8... d5 {[%clk 0:02:59.3]} 9. exd5 {[%clk 0:03:02]} 9... Nxd5 {[%clk 0:03:00.2]}
10. Nxc6 {[%clk 0:03:01.5]} 10... bxc6 {[%clk 0:03:01.1]} 11. Nxd5 {[%clk
0:03:01.9]} 11... cxd5 {[%clk 0:03:02]} 12. c3 {[%clk 0:02:56.5]} 12... e5
{[%clk 0:02:59.1]} 13. Qd2 {[%clk 0:02:48.6]} 13... Be6 {[%clk 0:02:57.7]} 14.
Rfd1 {[%clk 0:02:44.2]} 14... Qa5 {[%clk 0:02:57.4]} 15. a4 {[%clk 0:02:37.5]}
15... Rfd8 {[%clk 0:02:37.3]} 16. b4 {[%clk 0:02:35.6]} 16... Qc7 {[%clk
0:02:37.1]} 17. Bc5 {[%clk 0:02:35.3]} 17... d4 {[%clk 0:02:35.4]} 18. cxd4
{[%clk 0:02:30.8]} 18... exd4 {[%clk 0:02:36.3]} 19. Rac1 {[%clk 0:02:27.4]}
19... Qe5 {[%clk 0:02:32.4]} 20. Bf3 {[%clk 0:02:23.8]} 20... Rac8 {[%clk
0:02:27.1]} 21. a5 {[%clk 0:02:12.2]} 21... Rd7 {[%clk 0:01:45.2]} 22. a6 {[%clk
0:02:07.2]} 22... Bd5 {[%clk 0:01:40.1]} 23. Bxd4 {[%clk 0:01:41.7]} 23... Qe6
{[%clk 0:01:02.6]} 24. Rxc8+ {[%clk 0:01:33.1]} 1-0

[Event "Late-Titled-Tuesday-Blitz-July-09-2024"]
[Site "Chess.com"]
[Date "2024.07.09"]
[Round "6"]
[White "AlejandroArias"]
[Black "boguszp"]
[Result "1-0"]
[WhiteElo "2323"]
[BlackElo "1963"]
[TimeControl "180+1"]
[EndTime "15:02:14 PDT"]
[Termination "AlejandroArias won on time"]

1. e4 {[%clk 0:03:00.9]} 1... c6 {[%clk 0:00:52.5]} 2. d4 {[%clk 0:03:00]} 2...
d5 {[%clk 0:00:53.1]} 3. exd5 {[%clk 0:02:59.7]} 3... cxd5 {[%clk 0:00:53.7]} 4.
Bd3 {[%clk 0:03:00.2]} 4... Nc6 {[%clk 0:00:53.6]} 5. c3 {[%clk 0:03:00.2]} 5...
Nf6 {[%clk 0:00:54.1]} 6. h3 {[%clk 0:03:00.2]} 6... g6 {[%clk 0:00:54.7]} 7.
Nf3 {[%clk 0:02:59.9]} 7... Bg7 {[%clk 0:00:55.2]} 8. O-O {[%clk 0:02:59.8]}
8... O-O {[%clk 0:00:55.4]} 9. Re1 {[%clk 0:02:59.7]} 9... Bd7 {[%clk
0:00:50.5]} 10. Bf4 {[%clk 0:02:57.3]} 10... Qc8 {[%clk 0:00:49.4]} 11. Nbd2
{[%clk 0:02:53.9]} 11... Bf5 {[%clk 0:00:47.7]} 12. Bf1 {[%clk 0:02:52.3]} 12...
Re8 {[%clk 0:00:45.6]} 13. Ne5 {[%clk 0:02:44.6]} 13... Nh5 {[%clk 0:00:37.3]}
14. Bh2 {[%clk 0:02:41]} 14... Nxe5 {[%clk 0:00:32.4]} 15. dxe5 {[%clk
0:02:38.3]} 15... Bd7 {[%clk 0:00:20.3]} 16. g4 {[%clk 0:02:35.6]} 16... Bxe5
{[%clk 0:00:07.2]} 17. Bxe5 {[%clk 0:02:33.3]} 17... Nf6 {[%clk 0:00:07.7]} 18.
Bg2 {[%clk 0:02:22.9]} 1-0

[Event "Late-Titled-Tuesday-Blitz-July-09-2024"]
[Site "Chess.com"]
[Date "2024.07.09"]
[Round "6"]
[White "ValeriyGrinev"]
[Black "VitorBronson"]
[Result "1-0"]
[WhiteElo "2683"]
[BlackElo "2516"]
[TimeControl "180+1"]
[EndTime "15:02:22 PDT"]
[Termination "ValeriyGrinev won by resignation"]

1. d4 {[%clk 0:03:00.9]} 1... Nf6 {[%clk 0:02:57.6]} 2. c4 {[%clk 0:03:01.1]}
2... g6 {[%clk 0:02:58]} 3. Nc3 {[%clk 0:03:00.6]} 3... Bg7 {[%clk 0:02:58.3]}
4. e4 {[%clk 0:03:00.7]} 4... O-O {[%clk 0:02:59]} 5. Be2 {[%clk 0:03:01.6]}
5... d6 {[%clk 0:02:58.9]} 6. Nf3 {[%clk 0:03:02.2]} 6... e5 {[%clk 0:02:58.3]}
7. O-O {[%clk 0:03:03.1]} 7... Bg4 {[%clk 0:02:56.3]} 8. d5 {[%clk 0:03:03]}
8... a5 {[%clk 0:02:51.8]} 9. Ne1 {[%clk 0:03:03]} 9... Bd7 {[%clk 0:02:43.2]}
10. Be3 {[%clk 0:03:02.9]} 10... Na6 {[%clk 0:02:42.6]} 11. Nd3 {[%clk
0:03:02.4]} 11... b6 {[%clk 0:02:42.5]} 12. a3 {[%clk 0:03:02.3]} 12... Ne8
{[%clk 0:02:40.1]} 13. b4 {[%clk 0:03:01.6]} 13... axb4 {[%clk 0:02:39.5]} 14.
axb4 {[%clk 0:03:02.5]} 14... f5 {[%clk 0:02:37.6]} 15. f3 {[%clk 0:03:03]}
15... f4 {[%clk 0:02:37.8]} 16. Bf2 {[%clk 0:03:03.4]} 16... Nf6 {[%clk
0:02:36]} 17. c5 {[%clk 0:03:03.7]} 17... bxc5 {[%clk 0:02:34.5]} 18. bxc5
{[%clk 0:03:03.6]} 18... g5 {[%clk 0:02:25.9]} 19. c6 {[%clk 0:03:03.7]} 19...
Bc8 {[%clk 0:02:25.3]} 20. Nb4 {[%clk 0:03:01.9]} 20... Nxb4 {[%clk 0:02:20.4]}
21. Rxa8 {[%clk 0:03:02]} 21... Qe8 {[%clk 0:02:12.7]} 22. Qb3 {[%clk
0:03:01.8]} 22... Qg6 {[%clk 0:02:10.4]} 23. Qxb4 {[%clk 0:03:01.8]} 23... g4
{[%clk 0:02:11]} 24. fxg4 {[%clk 0:02:53.5]} 24... Nxg4 {[%clk 0:02:09]} 25.
Bxg4 {[%clk 0:02:51.5]} 25... Qxg4 {[%clk 0:02:09.2]} 26. h3 {[%clk 0:02:47]}
26... Qg6 {[%clk 0:02:07.6]} 27. Kh2 {[%clk 0:02:46.8]} 27... f3 {[%clk
0:02:05.3]} 28. Bg3 {[%clk 0:02:40.9]} 28... fxg2 {[%clk 0:01:57.9]} 29. Rxf8+
{[%clk 0:02:40.6]} 29... Bxf8 {[%clk 0:01:58.4]} 30. Qb1 {[%clk 0:02:16.7]}
30... Kg7 {[%clk 0:00:32.6]} 31. Rxc8 {[%clk 0:02:12.1]} 1-0